Cogmind - Beta 17 @@@ ROGUE MODE // 2026.08.13 @ 21:36:52 Player: Alicianrone Result: Destroyed by L-61 Swordsman with Power Sword Performance ------------- Evolutions (3) 1500 Regions Visited (11) 2200 Robots Destroyed (201) 1005 Value Destroyed (9124) 9124 Prototype IDs (45) 900 Alien Tech Used (0) 0 Bonus (16613) 16613 TOTAL SCORE: 31342 Bonus ------- Triggered High Security 500 High Alert Combat Kills 3111 Follower Combat Kills 1845 Prayed to X0-1V1 5000 Major X0-1V1 Interference 5850 Entered Garrisons 400 Aligned with FarCom 300 Friendly Fire -393 Cogmind --------- Core Integrity 0/425 Matter 748/900 Energy 200/200 System Corruption 4% Temperature Cool (0) Movement Core (1750) Ox34 Location -7/Factory Parts ------- > --- POWER (2) -------- Cold Fusion Reactor (fused) > --- PROPULSION (4) --- (None) > --- UTILITY (3) ------ Improved Heat Sink Huge Storage Unit Improved Medium Armor Plating > --- WEAPON (4) ------- Impact Mace > --- INVENTORY (25) --- Armored Huge Wheel Improved Heat Sink Medium Storage Unit Superbattery (1500) Experimental ECM Suite Improved Light Armor Plating Improved Medium Armor Plating Sensor Drone Bay (19/20) X0-1V1's Piety Tracker Rocket Array Improved Plasma Cutter Peak State ------------ > --- POWER ------------ Cold Fusion Reactor Backup Power VII > --- PROPULSION ------- Improved Heavy Treads Armored Huge Wheel > --- UTILITY ---------- Medium Storage Unit Experimental Optical Array Core Analyzer X0-1V1's Piety Tracker > --- WEAPON ----------- Cooled Phase Gun Cooled Particle Cannon Cooled Particle Cannon > --- INVENTORY -------- Huge Storage Unit Superbattery Improved Signal Interpreter Experimental ECM Suite Improved Medium Armor Plating Medium Reactive Plating Medium Insulated Plating Sensor Drone Bay Precision Rocket Launcher Impact Mace [Rating: 84] Favorites ----------- Power Ion Engine Engine Ion Engine Power Core Light Nuclear Core Reactor Antimatter Reactor Propulsion Armored Wheel Treads Light Treads Leg VSS Leg Wheel Armored Wheel Hover Unit Antigrav System Utility X0-1V1's Piety Tracker Device X0-1V1's Piety Tracker Storage Huge Storage Unit Processor Core Analyzer Hackware Hacking Suite Protection Improved Medium Armor Plating Weapon Cooled Particle Cannon Energy Gun Cooled Phase Gun Energy Cannon Cooled Particle Cannon Ballistic Gun Improved Assault Rifle Ballistic Cannon Light Cannon Launcher Mini Grenade Launcher Impact Weapon Impact Mace Build | -11 -10 -10 -10 -9 -8 -8 -8 -8 -7 -7 -7 ------- Run | Yrd Mat Min Exi Min Mat Gar Mat Gar Fac Was Fac Slots Evolved 6 | . . . . . 4 . . . 2 . . Power . | . . . . . . . . . . . . Propulsion 3 | . . . . . 2 . . . 1 . . Utility 1 | . . . . . . . . . 1 . . Weapon 2 | . . . . . 2 . . . . . . Parts Attached 129 | 7 11 5 . 2 18 11 3 10 2 19 41 Power 20 | 1 . . . . 2 5 1 2 . 4 5 Engine 7 | 1 . . . . 2 1 . 1 . 1 1 Core 10 | . . . . . . 4 1 1 . 1 3 Reactor 3 | . . . . . . . . . . 2 1 Propulsion 35 | 2 3 2 . . 3 5 1 4 . 6 9 Treads 15 | . 2 . . . 1 5 1 2 . . 4 Leg 8 | . . . . . . . . . . 5 3 Wheel 11 | 2 1 2 . . 2 . . 2 . . 2 Hover 1 | . . . . . . . . . . 1 . Flight . | . . . . . . . . . . . . Utility 31 | 2 2 3 . . 4 . . 2 1 4 13 Device 9 | 1 . 2 . . 1 . . 1 . 1 3 Storage 5 | 1 1 . . . . . . . . . 3 Processor 4 | . . . . . 1 . . . . 1 2 Hackware 2 | . . . . . 1 . . . 1 . . Protection 11 | . 1 1 . . 1 . . 1 . 2 5 Artifact . | . . . . . . . . . . . . Weapon 43 | 2 6 . . 2 9 1 1 2 1 5 14 Energy Gun 12 | 1 1 . . . 3 . . . . 1 6 Energy Cannon 5 | . . . . . . . . . . . 5 Ballistic Gun 14 | 1 2 . . . 3 1 1 2 1 3 . Ballistic Cannon 5 | . 2 . . 2 1 . . . . . . Launcher 4 | . 1 . . . 1 . . . . . 2 Special Weapon . | . . . . . . . . . . . . Impact Weapon 3 | . . . . . 1 . . . . 1 1 Slashing Weapon . | . . . . . . . . . . . . Piercing Weapon . | . . . . . . . . . . . . Special Melee Weapon . | . . . . . . . . . . . . Unidentified Prototypes 21 | . . 2 . . 4 . . . . 2 13 Corrupted Parts 2 | . . . . . . . . . . . 2 System Corruption 15 | . . . . . . . . . . . 15 Parts Lost 35 | . 1 . . . 1 6 . 4 1 2 20 Power 6 | . . . . . . 3 . . . . 3 Propulsion 15 | . . . . . 1 2 . 2 . 1 9 Utility 5 | . . . . . . . . 1 . 1 3 Weapon 9 | . 1 . . . . 1 . 1 1 . 5 Highest Loss Streak 5 | . 1 . . . 1 2 . 1 1 2 5 To Critical Strikes . | . . . . . . . . . . . . Average Backups 17 | 2 14 22 19 19 21 22 23 23 22 7 10 Power 1 | . . . 2 3 3 3 3 3 4 . . Propulsion 3 | 1 3 5 4 4 5 4 4 5 5 1 . Utility 8 | . 6 9 7 7 10 12 13 11 10 3 7 Weapon 3 | . 4 7 6 4 2 2 2 2 3 1 1 Tool/Special . | . . . . . . . . . . . . Unused Backups 46 | . 2 3 1 1 3 4 1 7 . 9 15 Power 3 | . . . . . . . . . . 3 . Propulsion 11 | . . . . . 1 3 . 2 . 1 4 Utility 22 | . . 2 . . 1 1 . 4 . 5 9 Weapon 9 | . 2 1 1 1 1 . 1 1 . . 1 Tool/Special 1 | . . . . . . . . . . . 1 Average Slot Usage (%) 92 | . 100 93 71 83 98 98 100 94 79 77 88 Engine 9 | . 14 14 14 14 16 3 9 15 15 3 1 Core 3 | . . . . . . 14 9 2 . . 3 Reactor 2 | . . . . . . . . . . 7 8 Treads 6 | . 2 . . . 8 12 18 17 7 1 4 Leg 4 | . . . . . . . . . . 16 13 Wheel 10 | . 25 14 14 14 18 13 9 4 7 1 3 Device 11 | . 12 17 28 28 9 9 9 8 7 7 6 Storage 9 | . 14 14 14 14 9 9 9 9 7 1 5 Processor 5 | . . . . . . 9 9 9 7 10 7 Protection 3 | . 1 9 . . . . . . 2 6 5 Energy Gun 2 | . 9 . . . . . . . . 2 5 Energy Cannon 3 | . . . . . . . . . . . 11 Ballistic Gun 10 | . 9 21 . . 2 15 27 26 21 12 3 Ballistic Cannon 4 | . 8 . . 12 24 4 . . . . . Impact Weapon 1 | . . . . . . 4 . . . 2 3 Peak Build Rating 84 | 7 13 30 30 36 50 50 48 60 63 70 84 Average Rating 47 | 5 9 21 29 32 42 45 47 54 60 56 70 On Entrance 37 | . 7 13 28 30 36 50 46 48 59 62 68 Avg Prop Armor Cover (%) 10 | . . . . . 7 11 14 8 7 6 11 Naked Turns . | . . . . . . . . . . . . Heaviest Build 138 | 15 95 110 100 109 115 110 108 126 127 120 138 Greatest Support 103 | 20 40 20 12 12 24 24 12 72 28 65 103 Greatest Overweight (x) 9 | . 4 9 8 9 4 8 8 8 4 4 4 Average Overweight (x) 3 | . 3 7 8 8 4 5 8 2 4 . 1 Largest Inventory Capacity 25 | 8 25 25 25 25 25 25 25 25 25 25 25 Average Capacity 21 | 6 24 25 25 25 25 25 25 25 25 7 14 Most Carried 25 | 3 22 25 25 25 25 25 25 25 23 23 17 Average Carried 18 | 2 14 23 24 24 24 24 24 24 22 7 10 Final Capacity 25 | 8 25 25 25 25 25 25 25 25 25 5 25 Final Carried 25 | 3 22 25 25 25 25 25 25 23 23 5 12 Class Distribution -------------------- 36% | Mutant 17% | Skirmisher 14% | Scavenger-Skirmisher 8% | Tank 7% | Scavenger-Mutant 7% | Commander-Skirmisher 4% | Scavenger-Tank Dominant Class ---------------- Mutant | -10/Materials Mutant | -10/Mines Mutant | -10/Exiles Mutant | -9/Mines Skirmisher | -8/Materials Mutant | -8/Garrison Commander-Skirmisher | -8/Materials Scavenger-Skirmisher | -8/Garrison Scavenger-Skirmisher | -7/Factory Scavenger-Mutant | -7/Waste Tank | -7/Factory Resources | -11 -10 -10 -10 -9 -8 -8 -8 -8 -7 -7 -7 ----------- Run | Yrd Mat Min Exi Min Mat Gar Mat Gar Fac Was Fac Matter Collected 7608 | 273 612 441 . 121 1282 982 164 1314 62 438 1919 Remotely . | . . . . . . . . . . . . Salvage Created 8426 | 24 470 235 . . 1095 878 99 847 72 1192 3514 Parts 340 | 3 39 9 . . 56 46 7 37 3 20 120 Haulers Intercepted 15 | . 2 . . . 5 . 1 . . . 7 Recyclers Shooed 1 | . . . . . . . . . . . 1 Parts Field Recycled . | . . . . . . . . . . . . Retrieved Matter . | . . . . . . . . . . . . Parts Self-Destructed . | . . . . . . . . . . . . Prevented . | . . . . . . . . . . . . Parts Restored . | . . . . . . . . . . . . Kills | -11 -10 -10 -10 -9 -8 -8 -8 -8 -7 -7 -7 ------- Run | Yrd Mat Min Exi Min Mat Gar Mat Gar Fac Was Fac Combat Hostiles Destroyed 149 | . 14 6 . . 25 24 1 15 1 4 59 Melee 3 | . . . . . . . . . . . 3 Guns 47 | . 6 6 . . . 4 1 14 1 4 11 Cannons 45 | . 1 . . . 12 12 . . . . 20 AOE 44 | . 7 . . . 13 8 . 1 . . 15 Classes Destroyed 20 | 1 6 2 . . 1 2 . 2 . 1 5 Worker 12 | . 2 . . . 7 . . . . . 3 Tunneler 2 | 1 . . . . . . . . . . 1 Hauler 15 | . 2 . . . 5 . 1 . . . 7 Recycler 7 | . . 1 . . 1 . . . . . 5 Mechanic 2 | . . . . . . . . . . . 2 Operator 2 | . 1 . . . 1 . . . . . . Watcher 10 | . 1 . . . 2 . . . . . 7 Swarmer 29 | . 6 . . . 10 4 . 2 . . 7 Grunt 55 | . 8 4 . . 10 8 . 3 . . 22 Brawler 5 | . . . . . . . . . . . 5 Duelist 3 | . . . . . . . . 2 . . 1 Protector 1 | . . . . . . . . . . . 1 Sentry 24 | . . . . . 7 6 1 3 1 . 6 Demolisher 4 | . . 2 . . . . . . . . 2 Specialist 1 | . . . . . . 1 . . . . . Hunter 13 | . . . . . . 5 . 1 . . 7 Programmer 9 | . . . . . . . . 4 . . 5 Heavy 1 | . . . . . . . . . . . 1 Compactor 4 | . . . . . . . . . . 4 . Assembled 2 | . . . . . . . . . . . 2 Martyr 2 | . . . . . . . . . . 2 . Best Kill Streak 10 | 1 6 2 . . 9 4 1 4 1 2 10 Combat Bots Only 9 | . 6 2 . . 6 4 1 4 1 2 9 Max Kills in Single Turn 4 | 1 4 1 . . 4 4 1 1 1 2 4 Gunslinging 1 | . . . . . . . . . . 1 . Exploded 4 | . 4 . . . 2 4 . 1 . . 3 Melee 1 | . . . . . . . . . . . 1 Uniques/NPCs Destroyed . | . . . . . . . . . . . . Combat | -11 -10 -10 -10 -9 -8 -8 -8 -8 -7 -7 -7 -------- Run | Yrd Mat Min Exi Min Mat Gar Mat Gar Fac Was Fac Hostile Shots Fired 768 | . 40 24 . . 83 91 . 80 27 2 421 Missed 220 | . 8 6 . . 26 34 . 18 6 . 122 Hits 548 | . 32 18 . . 57 57 . 62 21 2 299 Melee 23 | . . . . . . . . 1 . 2 20 Projectile 525 | . 32 18 . . 57 57 . 61 21 . 279 AOE 18 | . . 2 . . . . . 1 . . 15 Critical Strikes 17 | . . . . . 2 . 1 2 . 1 11 Part Disruptions 4 | . . . . . . . . 2 . . 2 Damage Taken 8476 | . 383 306 . . 917 809 33 1024 155 84 4765 Core 998 | . 66 72 . . 101 156 . 95 5 84 419 Absorbed by Shields . | . . . . . . . . . . . . Reduced by Siege Mode 79 | . . . . . . . . . . . 79 Ignored by Resistances 309 | . . . . . . 12 . . . . 297 Regen/Repaired (Parts) 145 | . . . . . . . . . . 135 10 Core Remaining (%) 68 | 100 . . . 64 . . . 42 . . . Volleys Fired 513 | 1 42 17 . . 101 69 5 106 4 21 147 Largest 3 | 2 2 2 . . 1 3 3 3 3 3 3 Hottest 270 | 60 95 46 . . 48 78 69 79 79 79 270 Shots Fired 991 | 2 78 35 . . 101 94 16 265 10 63 327 Gun 600 | 2 62 35 . . . 37 16 263 10 63 112 Cannon 361 | . 12 . . . 88 52 . . . . 209 Launcher 30 | . 4 . . . 13 5 . 2 . . 6 Special . | . . . . . . . . . . . . Kinetic 641 | 1 43 35 . . 88 89 16 263 10 63 33 Thermal 303 | . 26 . . . . . . . . . 277 Explosive 30 | . 4 . . . 13 5 . 2 . . 6 Electromagnetic 17 | 1 5 . . . . . . . . . 11 Robot Hit Streak 26 | 1 7 6 . . 11 5 16 26 15 26 21 Robot Miss Streak 7 | 1 3 3 . . 6 3 1 5 . 2 7 Penetration Max 2 | . . . . . 2 2 . 1 . . . Secondary Targets 9 | . 2 1 . . . . . 4 . 1 1 Max Gunslinging Chain 1 | . 1 1 . . . . . 1 . 1 1 Shots Hit Robots 667 | 1 40 29 . . 57 51 11 177 10 55 236 Core Hits 348 | 1 32 13 . . 54 36 4 75 3 11 119 Critical Kills 32 | . . . . . 16 10 . . . 1 5 Critical Parts Destroyed 42 | . . . . . 17 8 . 7 . 2 8 Critical Strikes 86 | . 1 . . . 38 18 . 7 . 5 17 Burn 4 | . 1 . . . . . . . . . 3 Meltdown 2 | . . . . . . . . . . . 2 Destroy 67 | . . . . . 38 18 . 7 . 3 1 Corrupt 1 | . . . . . . . . . . . 1 Smash 12 | . . . . . . . . . . 2 10 Melee Attacks 68 | . . . . . 3 7 . 1 . 2 55 Impact 68 | . . . . . 3 7 . 1 . 2 55 Slashing . | . . . . . . . . . . . . Piercing . | . . . . . . . . . . . . Sneak Attacks 12 | . . . . . 1 . . . . 2 9 Combat Hostiles 1 | . . . . . . . . . . . 1 Follow-up Attacks . | . . . . . . . . . . . . Damage Inflicted 19667 | 46 971 416 . . 2762 1414 166 2523 193 1161 10015 Guns 7021 | 15 513 416 . . . 317 166 2245 193 933 2223 Cannons 5326 | . 109 . . . 1300 585 . . . 71 3261 Explosions 4453 | 31 349 . . . 1348 512 . 278 . . 1935 Melee 2830 | . . . . . 114 . . . . 157 2559 Ramming 37 | . . . . . . . . . . . 37 Kinetic 6905 | . 341 416 . . 1300 902 166 2245 193 1004 338 Thermal 5575 | 31 322 . . . . . . . . . 5222 Explosive 4105 | . 267 . . . 1348 512 . 278 . . 1700 Electromagnetic 215 | 15 41 . . . . . . . . . 159 Impact 2830 | . . . . . 114 . . . . 157 2559 Slashing . | . . . . . . . . . . . . Piercing . | . . . . . . . . . . . . Highest Corruption 17 | . . 2 2 2 . 12 12 12 . 3 17 Average Corruption 6 | . . 2 2 2 . 12 12 7 . 3 7 Corruption Purged . | . . . . . . . . . . . . Corruption Blocked . | . . . . . . . . . . . . Effects 204 | . . 9 6 9 . 59 10 37 . 7 67 Message Errors 48 | . . 2 1 3 . 14 3 7 . 1 17 Matter Fused 49 | . . 4 2 . . 14 3 12 . 1 13 Heat Flow Errors 26 | . . . 2 5 . 9 . 3 . 1 6 Energy Discharges 19 | . . 1 . . . 5 1 2 . . 10 Parts Rejected 4 | . . 1 . . . . . . . . 3 Data Loss (minor) 25 | . . . 1 . . 8 1 6 . 3 6 Data Loss (major) 13 | . . . . 1 . 4 1 1 . 1 5 Misfires 8 | . . 1 . . . 1 1 1 . . 4 Alerts 6 | . . . . . . 3 . 2 . . 1 Weapon Failures 6 | . . . . . . 1 . 3 . . 2 Overload Shots 39 | . . . . . . . . . . . 39 Effects 4 | . . . . . . . . . . . 4 Energy Bleed 1 | . . . . . . . . . . . 1 Heat Surge 2 | . . . . . . . . . . . 2 Short Circuit 1 | . . . . . . . . . . . 1 Overflow Damage 1197 | . 13 . . . 94 . . 18 . 157 915 Projectiles 75 | . . . . . 17 . . . . . 58 Explosions 203 | . 13 . . . 49 . . 18 . . 123 Melee 919 | . . . . . 28 . . . . 157 734 Knockbacks 19 | . . . . . 3 5 . . . 1 10 Impact 11 | . . . . . 1 . . . . 1 9 Kinetic 7 | . . . . . 2 5 . . . . . Secondary 1 | . . . . . . . . . . . 1 Self-Inflicted Damage 376 | . 31 . . . 92 28 . . . . 225 Shots 11 | . 1 . . . 3 1 . . . . 6 Rammed . | . . . . . . . . . . . . Targets Rammed 5 | . . . . . . . . . . . 5 Kicked 5 | . . . . . . . . . . . 5 Crushed . | . . . . . . . . . . . . Highest Temperature 411 | . 330 36 231 232 22 266 . 269 15 281 411 Average Temperature 68 | . 77 18 115 93 9 88 . 75 9 117 61 Received Heat Transfer 2159 | . 180 117 . . 387 216 9 108 48 . 1094 Effects 4 | . 4 . . . . . . . . . . Energy Bleed 1 | . 1 . . . . . . . . . . Interference 3 | . 3 . . . . . . . . . . Siege Activations 5 | . . . . . . . . . . . 5 Total Turns 324 | . . . . . . . . . . . 324 Longest Duration 122 | . . . . . . . . . . . 122 Martial Activations . | . . . . . . . . . . . . Shielding Activations . | . . . . . . . . . . . . Robots Disrupted . | . . . . . . . . . . . . Combat Hostiles . | . . . . . . . . . . . . Robots Corrupted 13 | . . . . . 1 . . . . 2 10 Combat Hostiles 7 | . . . . . . . . . . . 7 Parts Fried 19 | . . . . . 2 . . . . 4 13 Impact Corruptions 35 | . . . . . 2 . . . . 2 31 Robots Melted 4 | . . . . . . . . . . . 4 Combat Hostiles 3 | . . . . . . . . . . . 3 Parts Melted 21 | . . . . . 1 . . . . . 20 Heat Transferred 7506 | 50 766 . . . . . . . . . 6690 Parts Sabotaged . | . . . . . . . . . . . . Parts Stolen . | . . . . . . . . . . . . Parts Stripped . | . . . . . . . . . . . . Power Chain Reactions 7 | 1 1 . . . . . . . . . 5 Alert | -11 -10 -10 -10 -9 -8 -8 -8 -8 -7 -7 -7 ------- Run | Yrd Mat Min Exi Min Mat Gar Mat Gar Fac Was Fac Maximum Alert Level 5 | . 1 . . . 2 5 3 5 4 2 5 Low Security (%) 32 | 100 66 100 . 100 70 . . . . 37 . Level 1 7 | . 33 . . . 8 . . . . 54 2 Level 2 11 | . . . . . 20 16 . 10 . 8 17 Level 3 22 | . . . . . . 48 100 13 . . 43 Level 4 17 | . . . . . . 32 . 41 100 . 24 Level 5 5 | . . . . . . 2 . 34 . . . High Security 3 | . . . . . . . . . . . 10 Max Security . | . . . . . . . . . . . . Peak Influence 2370 | 5 246 134 . . 644 1632 883 2370 1243 421 2238 Initial 1243 | . . 59 . . . 413 795 543 1243 421 70 Average 705 | . 135 21 . . 171 1035 830 1434 1225 244 1050 Influence Increases 8802 | 5 495 160 . . 1016 1279 161 2007 30 22 3627 Destroy 0b10 Robot/C 4140 | . 280 120 . . 540 640 60 940 20 . 1540 Destroy 0b10 Robot/NC 305 | 5 30 5 . . 95 5 5 10 . . 150 Destroy Leader 652 | . 66 20 . . 158 20 32 30 10 . 316 Allied During Kill 756 | . . . . . 39 115 61 266 . . 275 Trap Triggered on 0b10 10 | . . . . . 10 . . . . . . Successful Hack 112 | . . . . . 31 23 3 21 . . 34 Select Force Hacks 140 | . 30 . . . 30 . . . . . 80 Disable Machine 285 | . 15 . . . . 30 . 60 . . 180 Anti-Garrison Action 1350 | . . . . . . 400 . 550 . . 400 Destroy Structure 431 | . 29 . . . 98 46 . 70 . 22 166 Lose Combat Pursuer 495 | . 45 15 . . 15 . . 60 . . 360 Miscellaneous 126 | . . . . . . . . . . . 126 Influence Decreases 6574 | 5 342 313 . . 380 283 957 473 1197 1124 1500 Entered New Map 3387 | . . 94 . . . 223 837 293 1127 782 31 Time Decay 2107 | 5 332 219 . . 350 . 120 . 60 302 719 Lost Part 350 | . 10 . . . 10 60 . 40 10 20 200 Lost Ally 580 | . . . . . 20 . . 140 . 20 400 Purge Threat 150 | . . . . . . . . . . . 150 Squads Dispatched 47 | . 3 . . . 5 . 2 . . . 37 Investigation 10 | . 2 . . . 2 . 1 . . . 5 Extermination 6 | . . . . . . . . . . . 6 Reinforcement 7 | . 1 . . . . . . . . . 6 Assault 20 | . . . . . . . . . . . 20 Garrison 4 | . . . . . 3 . 1 . . . . Intercept . | . . . . . . . . . . . . Searches Triggered . | . . . . . . . . . . . . Construction Impeded 2 | . . . . . . . . . . . 2 Haulers Reinforced 1 | . . . . . . . . . . . 1 Active Scanning Responses . | . . . . . . . . . . . . Cargo Convoy Interrupts 1 | . . . . . . . . . . . 1 Stealth | -11 -10 -10 -10 -9 -8 -8 -8 -8 -7 -7 -7 --------- Run | Yrd Mat Min Exi Min Mat Gar Mat Gar Fac Was Fac Distress Signals 12 | . 2 . . . 2 1 . . . . 7 Communications Jammed . | . . . . . . . . . . . . Distress Signals . | . . . . . . . . . . . . Times Spotted 305 | . 26 7 . . 33 29 2 41 1 6 160 Peak Tracking Total 22 | . 7 3 . . 7 5 1 5 1 4 22 Tactical Retreats 19 | . 2 1 . . 1 . . 2 . . 13 Traps | -11 -10 -10 -10 -9 -8 -8 -8 -8 -7 -7 -7 ------- Run | Yrd Mat Min Exi Min Mat Gar Mat Gar Fac Was Fac Traps Triggered 27 | . 1 . . . . 9 . 7 1 . 9 Indirectly . | . . . . . . . . . . . . Trap Hack Attempts . | . . . . . . . . . . . . Triggered . | . . . . . . . . . . . . Disarmed . | . . . . . . . . . . . . Reprogrammed . | . . . . . . . . . . . . Reused 1 | . . . . . 1 . . . . . . Traps Extracted . | . . . . . . . . . . . . Installed 4 | . . . . . 3 . . 1 . . . Triggered 1 | . . . . . 1 . . . . . . Most Traps Carried 5 | . . 5 5 5 5 2 2 2 . . . Machines | -11 -10 -10 -10 -9 -8 -8 -8 -8 -7 -7 -7 ---------- Run | Yrd Mat Min Exi Min Mat Gar Mat Gar Fac Was Fac Machines Disabled 33 | . 1 . . . . 7 . 13 . . 12 Max in Single Turn 2 | . 1 . . . . 1 . 1 . . 2 Garrison Access 2 | . . . . . . . . . . . 2 Garrison Relay 12 | . . . . . . 4 . 8 . . . Phase Generator 1 | . . . . . . 1 . . . . . Machines Repaired . | . . . . . . . . . . . . Machines Dismantled . | . . . . . . . . . . . . Machines Sabotaged . | . . . . . . . . . . . . Overloaded Fab Kills 15 | . . . . . . . . . . . 15 Hacking | -11 -10 -10 -10 -9 -8 -8 -8 -8 -7 -7 -7 --------- Run | Yrd Mat Min Exi Min Mat Gar Mat Gar Fac Was Fac Machines Accessed 35 | . 2 1 1 . 7 3 2 2 1 . 16 Terminals 20 | . 1 . . . 4 3 1 2 1 . 8 Fabricators 3 | . . . . . . . . . . . 3 Repair Stations . | . . . . . . . . . . . . Recycling Units 4 | . 1 . . . 1 . . . . . 2 Scanalyzers 2 | . . . . . 1 . . . . . 1 Garrison Access 4 | . . . . . 1 . 1 . . . 2 Total Hacks 83 | . 3 1 1 . 19 4 5 5 2 . 43 Successful 38 | . 3 1 1 . 5 3 2 2 . . 21 Failed 44 | . . . . . 14 1 3 3 2 . 21 Catastrophic 7 | . . . . . 3 . . . . . 4 Database Lockouts 1 | . . . . . . . . . . . 1 Manual 34 | . 3 . 1 . 5 . 4 . . . 21 Terminals 53 | . 1 . . . 11 4 4 5 2 . 26 Fabricators 6 | . . . . . . . . . . . 6 Repair Stations . | . . . . . . . . . . . . Recycling Units 5 | . 2 . . . 1 . . . . . 2 Scanalyzers 8 | . . . . . 4 . . . . . 4 Garrison Access 9 | . . . . . 3 . 1 . . . 5 Terminal Hacks 16 | . . 1 1 . 1 3 . 2 . . 8 Open Door 3 | . . 1 . . . 1 . 1 . . . Branch Access Points 1 | . . . . . 1 . . . . . . Emergency Access Points 2 | . . . . . . 1 . 1 . . . Alert Level 3 | . . . . . . . . . . . 3 Unreport Threat 1 | . . . . . . . . . . . 1 Locate Traps 3 | . . . . . . . . . . . 3 Registered Components 1 | . . . . . . . . . . . 1 Security Stations 1 | . . . . . . 1 . . . . . Proto ID Catalog 1 | . . . 1 . . . . . . . . Fabricator Hacks 1 | . . . . . . . . . . . 1 Network Status 1 | . . . . . . . . . . . 1 Repair Station Hacks . | . . . . . . . . . . . . Recycling Unit Hacks 1 | . 1 . . . . . . . . . . Retrieve Components 1 | . 1 . . . . . . . . . . Scanalyzer 4 | . . . . . 2 . . . . . 2 Insert Component 2 | . . . . . 1 . . . . . 1 Retrieve Study 2 | . . . . . 1 . . . . . 1 Garrison Access Hacks 2 | . . . . . 1 . 1 . . . . Unlock Access 2 | . . . . . 1 . 1 . . . . Unauthorized Hacks 14 | . 2 . . . 1 . 1 . . . 10 Terminals 6 | . 1 . . . . . 1 . . . 4 Botnet 4 | . 1 . . . . . 1 . . . 2 Disrupt 1 | . . . . . . . . . . . 1 Operators 1 | . . . . . . . . . . . 1 Fabricators 3 | . . . . . . . . . . . 3 Liberate 1 | . . . . . . . . . . . 1 Haulers 1 | . . . . . . . . . . . 1 Overload 1 | . . . . . . . . . . . 1 Repair Stations . | . . . . . . . . . . . . Recycling Units 3 | . 1 . . . 1 . . . . . 1 Tunnel 3 | . 1 . . . 1 . . . . . 1 Scanalyzers . | . . . . . . . . . . . . Garrison Access 2 | . . . . . . . . . . . 2 Jam 2 | . . . . . . . . . . . 2 Data Cores Recovered 2 | . . . . . 1 . . . . . 1 Used . | . . . . . . . . . . . . Hacking Detections 27 | . . . . . 6 3 1 2 1 . 14 Full Trace Events 2 | . . . . . . . 1 1 . . . Feedback Events . | . . . . . . . . . . . . Feedback Blocked . | . . . . . . . . . . . . Robot Schematics Acquired . | . . . . . . . . . . . . Robots Built . | . . . . . . . . . . . . Authchips . | . . . . . . . . . . . . Time . | . . . . . . . . . . . . Total Robot Build Rating . | . . . . . . . . . . . . Part Schematics Acquired . | . . . . . . . . . . . . Parts Built . | . . . . . . . . . . . . Authchips . | . . . . . . . . . . . . Time . | . . . . . . . . . . . . Total Part Build Rating . | . . . . . . . . . . . . Part Studies Acquired 2 | . . . . . 1 . . . . . 1 Parts Repaired . | . . . . . . . . . . . . Time . | . . . . . . . . . . . . Parts Recycled . | . . . . . . . . . . . . Recycled Matter . | . . . . . . . . . . . . Retrieved Matter . | . . . . . . . . . . . . Retrieved Components 3 | . 3 . . . . . . . . . . Parts Scanalyzed . | . . . . . . . . . . . . Part Schematics Acquired . | . . . . . . . . . . . . Parts Damaged . | . . . . . . . . . . . . Bothacking | -11 -10 -10 -10 -9 -8 -8 -8 -8 -7 -7 -7 ------------ Run | Yrd Mat Min Exi Min Mat Gar Mat Gar Fac Was Fac Used RIF Installer . | . . . . . . . . . . . . Robots Hacked . | . . . . . . . . . . . . Non-combat . | . . . . . . . . . . . . Combat . | . . . . . . . . . . . . Robot Hacks Applied . | . . . . . . . . . . . . Relay Couplers Released 50 | . . . . . . 16 . 34 . . . Machine Destruction 50 | . . . . . . 16 . 34 . . . Fabnet Peak Effective % . | . . . . . . . . . . . . Robots Rewired 9 | . . . . . . 6 . 3 . . . Allies Hacked . | . . . . . . . . . . . . Hacks Repelled . | . . . . . . . . . . . . Allies | -11 -10 -10 -10 -9 -8 -8 -8 -8 -7 -7 -7 -------- Run | Yrd Mat Min Exi Min Mat Gar Mat Gar Fac Was Fac Total Allies 45 | . . 3 . . . 8 . 9 . 20 5 Largest Group 19 | . . 3 3 3 3 8 8 8 . 19 16 Highest-Rated Group 465 | . . 40 40 40 40 266 266 266 . 465 381 Highest-Rated Ally 43 | . . 16 16 16 16 40 40 43 . 35 32 Initial Warlord ECA Mod 20 | . . . . . . . 9 9 20 20 20 Total Orders 6 | . . 1 1 1 2 . . . . . 1 STAY 1 | . . . . . 1 . . . . . . FOLLOW 1 | . . . . . 1 . . . . . . RETURN 4 | . . 1 1 1 . . . . . . 1 Ally Attacks 411 | . . . . . 35 50 8 113 . 42 163 Total Damage 8292 | . . . . . 357 684 157 3469 . 907 2718 Kills 79 | . . . . . 5 9 2 35 . 3 25 Allies Corrupted 2 | . . . . . . . . . . 2 . Allies Melted . | . . . . . . . . . . . . X0-1V1 Amusement Gains 173 | . 3 20 . . 15 20 . 69 . . 46 Good Acts 60 | . . 2 . . 3 9 . 10 . 9 27 Bad Acts 47 | . . 4 . 1 4 6 . 4 . 5 23 Intel | -11 -10 -10 -10 -9 -8 -8 -8 -8 -7 -7 -7 ------- Run | Yrd Mat Min Exi Min Mat Gar Mat Gar Fac Was Fac Active Infowar (turns) 1594 | 23 1006 352 . . . . . . . 1 212 Optics 204 | . . . . . . . . . . . 204 Sensors 1 | . . . . . . . . . . 1 . Seismic 1381 | 23 1006 352 . . . . . . . . . ECM 8 | . . . . . . . . . . . 8 Robot Analysis Total . | . . . . . . . . . . . . Derelict Logs Recovered 5 | . . 3 . 2 . . . . . . . Drone Launches 4 | . . 2 . 1 . . . . . . 1 Drone Recoveries 3 | . . . 1 1 . . . . . . 1 Exploration | -11 -10 -10 -10 -9 -8 -8 -8 -8 -7 -7 -7 ------------- Run | Yrd Mat Min Exi Min Mat Gar Mat Gar Fac Was Fac Turns Passed 13734 | 59 1136 1316 468 880 1459 1849 241 1771 122 667 3766 Spaces Moved 7106 | 54 637 605 219 394 758 895 107 683 65 495 2194 Core 3 | 3 . . . . . . . . . . . Treads 275 | . 1 . . . . . . 264 . . 10 Legs 1525 | . . . . . . . . . . 267 1258 Wheels 5143 | 51 636 605 219 394 758 895 107 419 65 68 926 Hover 160 | . . . . . . . . . . 160 . Flight . | . . . . . . . . . . . . Fastest Speed 50 | 50 80 140 210 210 140 140 200 160 160 60 90 Average Speed 150 | 78 139 202 210 216 146 164 200 190 160 91 115 Slowest Speed 320 | 80 320 225 210 225 150 200 200 235 160 160 240 Overloaded Moves . | . . . . . . . . . . . . Propulsion Burnouts . | . . . . . . . . . . . . Robots Hopped . | . . . . . . . . . . . . Potential Cave-ins 5 | . . . . . . . . . . . 5 Cave-ins Triggered . | . . . . . . . . . . . . Exploration Rate (%) 60 | 3 81 95 61 69 59 96 13 91 3 92 61 Regions Visited 11 Branch Regions 3 Pre-discovered Areas 4 | . 1 1 . . 1 . . . . . 1 Known Exits Taken 3 | . . 1 . . 1 . 1 . . . . Unknown Exits Taken 4 | 1 1 . 1 1 . . . . . . . Scrap Searched 3 | . . 1 . 2 . . . . . . . Spaces Dug 32 | . . . . . . 1 . . . . 31 Terrain Destroyed 395 | 2 27 . . . 118 32 . 8 . . 208 Melee 10 | . . . . . . 1 . . . . 9 Projectile 86 | . . . . . 36 7 . 3 . . 40 AOE 299 | 2 27 . . . 82 24 . 5 . . 159 Terrain Rammed . | . . . . . . . . . . . . Walls Destroyed . | . . . . . . . . . . . . Machines Disabled . | . . . . . . . . . . . . Actions | -11 -10 -10 -10 -9 -8 -8 -8 -8 -7 -7 -7 --------- Run | Yrd Mat Min Exi Min Mat Gar Mat Gar Fac Was Fac Total 9196 | 64 795 662 230 423 999 1171 128 948 75 660 3041 Wait 872 | . 57 5 4 21 66 92 5 46 2 92 482 Move 7096 | 53 636 604 218 393 758 893 106 682 65 494 2194 Hop . | . . . . . . . . . . . . Pick Up 119 | 3 23 9 4 4 15 7 3 12 1 10 28 Fast Attach 88 | 7 1 1 . . 10 3 1 4 1 15 45 Attach 37 | . 2 2 . 1 6 4 . 3 1 4 14 Detach 11 | . . 1 . . 2 . . 1 . 2 5 Swap 101 | . 28 14 . 1 16 14 2 7 1 1 17 Drop 133 | . 6 9 4 3 19 8 6 18 . 19 41 Fire 513 | 1 42 17 . . 101 69 5 106 4 21 147 Melee 68 | . . . . . 3 7 . 1 . 2 55 Ram . | . . . . . . . . . . . . Kick 5 | . . . . . . . . . . . 5 Crush . | . . . . . . . . . . . . Escape Stasis 84 | . . . . . . 48 . 28 . . 8 Rewire 65 | . . . . . . 26 . 39 . . . Trap 4 | . . . . . 3 . . 1 . . . Miscellaneous . | . . . . . . . . . . . . Route ------- -11/Scrapyard -10/Materials (discovered 4 exits: *Mat x2 / *Min / [*Sub]) -10/Mines (discovered 3 exits: *Mat x2 / *Exi) -10/Exiles -9/Mines -8/Materials (discovered 2 exits: Fac / Gar) -8/Garrison (discovered 3 exits: *Mat x3) -8/Materials -8/Garrison (discovered 3 exits: *Fac x3) -7/Factory -7/Waste -7/Factory (discovered 6 exits: *Fac x3 / Sto / *Low x2) History --------- Turn | Location | Event 7 | -11/Scrapyard | Discovered new exit (range 15) 60 | -11/Scrapyard | Entered Materials 318 | -10/Materials | Build established: Mutant 510 | -10/Materials | Discovered new exit (range 16) 949 | -10/Materials | Discovered new exit (range 8) 1101 | -10/Materials | Discovered new exit (range 12) 1153 | -10/Materials | Discovered new exit (range 7) 1161 | -10/Materials | Prayed at D.C.S.S. Altar Unit 1196 | -10/Materials | Entered Mines 1202 | -10/Mines | Met a Derelict bent on vengeance 1225 | -10/Mines | X0-1V1 sent hostile G-34 Mercenary (x3) 1234 | -10/Mines | Learned 2 Materials zone layouts 1277 | -10/Mines | X0-1V1 mutated your Propulsion slot to Utility slot 1350 | -10/Mines | Assembled infested the area 1351 | -10/Mines | Core integrity fell below 50% 1464 | -10/Mines | Discovered new exit (range 14) 1576 | -10/Mines | Identified exit to Materials 1580 | -10/Mines | Found the Drone Emporium 1588 | -10/Mines | Found Prototype Device 1589 | -10/Mines | Identified Sensor Drone Bay 1854 | -10/Mines | Learned location of Zion (-6) 1935 | -10/Mines | X0-1V1 mutated your Weapon slot to Power slot 1991 | -10/Mines | Assisted by bots powering up and referring to "LRC-V3" 2104 | -10/Mines | Deemed a non-threat by the Exiles lab entrance 2104 | -10/Mines | Discovered new exit (range 5) 2153 | -10/Mines | Heat dissipation permanently improved by X0-1V1 (+15; -75 max core) 2161 | -10/Mines | Found a hidden stash of uninstalled traps 2510 | -10/Mines | Identified exit to Exiles 2512 | -10/Mines | Entered Exiles 2512 | -10/Exiles | Accompanied by 4 allies 2566 | -10/Exiles | Met 8R-AWN 2611 | -10/Exiles | Met EX-HEX 2670 | -10/Exiles | Met EX-BIN 2700 | -10/Exiles | Aligned with FarCom system 2702 | -10/Exiles | Given EX-Vault access code 2752 | -10/Exiles | Opened EX-Vault 2767 | -10/Exiles | Found Superbattery 2810 | -10/Exiles | Warned to stay clear of 0b10 Research branches 2869 | -10/Exiles | Met EX-DEC 2955 | -10/Exiles | Discovered new exit (range 11) 2980 | -10/Exiles | Left Exiles lab with Superbattery 2980 | -10/Exiles | Entered Mines 2980 | -9/Mines | Accompanied by 3 allies 3461 | -9/Mines | A weapon hastily lodged in a ceiling crevice suddenly fell to the ground 3541 | -9/Mines | Learned Materials trap positions 3574 | -9/Mines | Found a damaged Exp. Sensor Array with a note attached 3579 | -9/Mines | Found Prototype Device 3840 | -9/Mines | Discovered new exit (range 5) 3860 | -9/Mines | Entered Materials 3860 | -8/Materials | Accompanied by 3 allies 3860 | -8/Materials | Evolved 4 slots: Propulsion x2, Weapon x2 3861 | -8/Materials | Identified exit to Factory 3863 | -8/Materials | Loaded intel: 15 trap records 4023 | -8/Materials | Melee accuracy permanently improved by X0-1V1 (+5%; -50 max core) 4065 | -8/Materials | X0-1V1 activates XOMVISION 4151 | -8/Materials | Build established: Skirmisher 4878 | -8/Materials | X0-1V1 sent you into danger 5062 | -8/Materials | X0-1V1 activates XOMVISION 5319 | -8/Materials | Identified exit to Garrison 5319 | -8/Materials | Entered Garrison 5484 | -8/Garrison | Triggered checkpoint 5504 | -8/Garrison | X0-1V1 sent hostile G-47 Trooper (x4) 5541 | -8/Garrison | X0-1V1 destroyed Phase Generator 5541 | -8/Garrison | Phase Generator disabled 5589 | -8/Garrison | Triggered checkpoint 5628 | -8/Garrison | Garrison Relay disabled 5688 | -8/Garrison | Discovered new exit (range 12) 5699 | -8/Garrison | System corruption reached 10% 5700 | -8/Garrison | Build established: Mutant 5831 | -8/Garrison | Triggered checkpoint 5874 | -8/Garrison | Learned Materials security intel 5949 | -8/Garrison | Triggered checkpoint 6006 | -8/Garrison | Energy generation permanently improved by X0-1V1 (+15; -150 max core) 6049 | -8/Garrison | Rescued a captive Derelict 6051 | -8/Garrison | Rescued a captive Derelict 6082 | -8/Garrison | Garrison Relay disabled 6121 | -8/Garrison | Discovered new exit (range 7) 6173 | -8/Garrison | Triggered checkpoint 6215 | -8/Garrison | Identified exit to Materials 6215 | -8/Garrison | X0-1V1 revealed exit location to -8/Materials 6480 | -8/Garrison | Build established: Scavenger-Skirmisher 6585 | -8/Garrison | Triggered checkpoint 6606 | -8/Garrison | Garrison Relay disabled 6679 | -8/Garrison | Triggered checkpoint 6743 | -8/Garrison | Triggered checkpoint 6746 | -8/Garrison | Garrison Relay disabled 6866 | -8/Garrison | X0-1V1 vaporized surrounding terrain (radius 16) 7015 | -8/Garrison | Attempted to access garrison exit controls, blocked by remote lockdown 7135 | -8/Garrison | Build established: Commander-Skirmisher 7168 | -8/Garrison | Entered Materials 7168 | -8/Materials | Accompanied by 8 allies 7277 | -8/Materials | Garrison activated, responded to threat 7397 | -8/Materials | Identified exit to Garrison 7409 | -8/Materials | Entered Garrison 7409 | -8/Garrison | Accompanied by 8 allies 7415 | -8/Garrison | X0-1V1 activates XOMVISION 7571 | -8/Garrison | Triggered checkpoint 7608 | -8/Garrison | X0-1V1 rewrote Marksman 3b IFF filter 7619 | -8/Garrison | Garrison Relay disabled 7738 | -8/Garrison | Triggered checkpoint 7906 | -8/Garrison | Triggered checkpoint 7912 | -8/Garrison | Discovered exit to Factory (range 16) 7921 | -8/Garrison | X0-1V1 upgraded ally (x4) 7949 | -8/Garrison | Spotted B-75 Beast 7952 | -8/Garrison | Allies destroyed B-75 Beast 8121 | -8/Garrison | Rescued a captive Derelict 8122 | -8/Garrison | Rescued a captive Derelict 8124 | -8/Garrison | Core integrity restored by X0-1V1 (+44) 8260 | -8/Garrison | Build established: Scavenger-Skirmisher 8396 | -8/Garrison | X0-1V1 activates XOMVISION 8664 | -8/Garrison | Garrison Relay disabled 8715 | -8/Garrison | Discovered exit to Factory (range 10) 8877 | -8/Garrison | Triggered checkpoint 8883 | -8/Garrison | Discovered exit to Factory (range 12) 8926 | -8/Garrison | Garrison Relay disabled 8929 | -8/Garrison | Garrison Relay disabled 8941 | -8/Garrison | P-60 Hacker assimilated allied Slayer 3b 8943 | -8/Garrison | P-60 Hacker assimilated allied Slayer 3c 8968 | -8/Garrison | Core integrity fell below 50% 9013 | -8/Garrison | Garrison Relay disabled 9016 | -8/Garrison | Garrison Relay disabled 9113 | -8/Garrison | Garrison Relay disabled 9180 | -8/Garrison | Entered Factory 9180 | -7/Factory | Evolved 2 slots: Propulsion x1, Utility x1 9302 | -7/Factory | Sucked down chute 9302 | -7/Factory | Entered Waste 9303 | -7/Waste | Met a frightened Derelict 9315 | -7/Waste | Spotted C-40 Crusher 9336 | -7/Waste | Destroyed C-40 Crusher 9361 | -7/Waste | Destroyed C-40 Crusher 9361 | -7/Waste | Destroyed C-40 Crusher 9393 | -7/Waste | Crushed by Compactor (1 part destroyed) 9396 | -7/Waste | Crushed by Compactor (1 part destroyed, 1 dropped) 9399 | -7/Waste | Destroyed C-40 Crusher 9402 | -7/Waste | Spotted C-40 Crusher 9426 | -7/Waste | Spotted C-40 Crusher 9497 | -7/Waste | Warlord forces began an assault 9513 | -7/Waste | Allies destroyed C-40 Crusher 9526 | -7/Waste | Discovered new exit (range 15) 9564 | -7/Waste | X0-1V1 activates XOMVISION 9613 | -7/Waste | Identified Exp. Sensor Array 9899 | -7/Waste | X0-1V1 activates XOMVISION 9957 | -7/Waste | X0-1V1 vaporized surrounding terrain (radius 19) 9969 | -7/Waste | Entered Factory 9969 | -7/Factory | Accompanied by 16 allies 10033 | -7/Factory | Discovered new exit (range 6) 10043 | -7/Factory | Identified exit to Lower Caves 10108 | -7/Factory | Build established: Scavenger-Tank 10162 | -7/Factory | Discovered new exit (range 16) 10163 | -7/Factory | Lost 5 allies 10421 | -7/Factory | Central database locked down 10521 | -7/Factory | Found Prototype Launcher 10522 | -7/Factory | Identified Rocket Array 10527 | -7/Factory | Lost 5 allies 10751 | -7/Factory | Build established: Scavenger-Mutant 11017 | -7/Factory | X0-1V1 enhanced Transport squad support 11159 | -7/Factory | Discovered new exit (range 16) 11169 | -7/Factory | First assault squad dispatched 11284 | -7/Factory | X0-1V1 activates XOMVISION 11296 | -7/Factory | Allied Derelicts emerged from ambush trap array 11511 | -7/Factory | Build established: Scavenger-Skirmisher 11567 | -7/Factory | Discovered exit to Lower Caves (range 7) 11599 | -7/Factory | Assembled infested ambush trap array 11697 | -7/Factory | Lost 4 parts (1p2n1u) 11757 | -7/Factory | Cargo convoy interrupted 12068 | -7/Factory | Found Prototype Device 12068 | -7/Factory | Identified Exp. ECM Suite 12081 | -7/Factory | Core integrity fell below 50% 12084 | -7/Factory | System corruption reached 10% 12203 | -7/Factory | Build established: Skirmisher 12338 | -7/Factory | X0-1V1 activates XOMVISION 12369 | -7/Factory | Discovered new exit (range 5) 12418 | -7/Factory | Identified exit to Factory 12468 | -7/Factory | X0-1V1 mutated your Utility slot to Weapon slot 12536 | -7/Factory | X0-1V1 added 0b10 threat records associated with you (minor) 12577 | -7/Factory | Core integrity restored by X0-1V1 (+72) 12590 | -7/Factory | Build established: Tank 12947 | -7/Factory | X0-1V1 activates XOMVISION 13063 | -7/Factory | Identified exit to Storage 13063 | -7/Factory | X0-1V1 revealed exit location to -7/Storage 13312 | -7/Factory | X0-1V1 upgraded hostiles (x1) 13331 | -7/Factory | High security lockdown imminent 13411 | -7/Factory | High security lockdown engaged 13652 | -7/Factory | Destroyed 9 combat bots 13671 | -7/Factory | Lost 4 parts (1p1n2u) 13694 | -7/Factory | X0-1V1 upgraded hostiles (x3) 13731 | -7/Factory | Core integrity fell below 20% 13735 | -7/Factory | Destroyed by L-61 Swordsman with Power Sword Last Messages --------------- (Smash). 13723_ Destroyed Imp. Deuterium Engine. 13723_ L-41 Fighter system corrupted by crushing effect. 13726_ C-45 Heavy ARC bursts open, deploying its payload. 13726_ L-41 Fighter destroyed. 13727_ Acquired 38 matter. 13728_ Arm. Huge Wheel destroyed. 13728_ Imp. Medium Armor Plating severed. 13729_ C-45 Heavy ARC bursts open, deploying its payload. 13729_ Acquired Imp. Medium Armor Plating. 13730_ L-61 Swordsman knocked back. 13733_ Destroyed Imp. Core Shielding. 13733_ L-61 Swordsman system corrupted by crushing effect. 13734_ P-60 Hacker resets L-61 Swordsman, system corruption cleaned. 13735_ X0-1V1 cackles wildly! Map ----- +----------------------------------------------------+ | ## #?????" """ # ??????? | | +##### #?????" """ ?# ##############+##### # | | #??# #?????? ?# #????????# # # | | " #??# #?????" """ ??# #????????# # # | | #??# #????"" """ ??# ########## # # | | #??# #????"" """???# + # # | | #??# #??????? ???# ##########"## > # # | | #??# #???????? ????## ## ### # + | | #??# ######??##?????# ## """"" #?# # # | | #??# # #????????##C## """"" #?# # # | | ###??# # ##########! # """ #?#####+##### # | | ?????# # + + #?????# #???# | | ?????# # ########## # #?????# ##### | | ?????# # #????????##### #?????# | | ?????# # #????????????# #?????# ##### | | ?????# # #????????????###########?????# #???# | | ##???# # #????????????????????????????# #???# | | ###??# # #???????????????????????????##+#####+ | | #??# ######???????????????????????????# | | #??# #????????????????????????????????# """ | | #??# #???????#######??????????????????# Y" | | #??# #??????### # ##????????????????# """ # | | ! #??# #??????# #?????????????i??+ # | | #??# #??????# # #????????????pl??# """ # | | #### ######## * #*%[!#############bg # """ + | | +% !%%%=%!= *m! %[%%%l@gpgggggppgmm= ; """ # | | # ###### ###/######=######p#### # | | ### # g % ##????###????g?g??########## | | % # #????????????i??????????????? | | % # "" ???????????????????????????? | | #??" ????????????????????????????? | | ##### #? " ????????????????????????????? | | ????# #??" ?????????????????????????????? | | ????+ +? % ????????????????+????????????? | | ????# # %*%??????????????????????????????? | | ????# # ? ??????????????????????????????? | | ????# #? ???????????????????????????????? | | ????# #? ?? ???????????????????????????????? | | ????# #?? ??? ????????????????????????????????? | | ????# #??##????????????????????????????????????? | | ????# #?????????????????????????o??????????????? | | ????# #????????????????????????????????????????? | | ????# #????????????????????????????????????????? | | ????? #????????????????????????????????????????? | | ????? #????????????????????????????????????????? | | ?????? ??????????????????????????????????????????? | | ?????????????????????????????????????????????????? | | ?????????????????????????????????????????????????? | | ?????????????????????????+???????????????????????? | | ?????????????????????????????????????????????????? | +----------------------------------------------------+ Best States ------------- Heat Dissipation 63 Energy Generation 77 Energy Capacity 1550 Matter Stores 800 Matter Capacity 900 Sight Range 23 Terrain Scan Density 10 ECM Strength 3 Armor Coverage 450 Resistance: KI 30 Resistance: TH 38 Resistance: EM 20 Evasion (%) 70 Core Analysis 9 Recoil Reduction 3 Offensive Hacking 10 Item Schematics ----------------- None Robot Schematics ------------------ None Fabricated ------------ Nothing Repaired ---------- Nothing Studied --------- Arm. Wheel | -8/Materials | Hacked VSS Leg | -7/Factory | Hacked Alien Tech Used ----------------- None Achievements -------------- None Challenges ------------ None Game ------ Seed SensorAutogunArachnoskeleton Manual? 0 Play Time 01:36:19 Cumulative 1009.7 hours Start 2026.08.13 @ 20:01:00 End 2026.08.13 @ 21:36:52 Sessions 1 Manual Loads 0 Difficulty Rogue Special Mode None Game No. 276 Rogue 276 Adventurer 0 Explorer 0 Win Type - Total 44 Types 13/9/10/2/2/0/4/1/1/2 Lore% 97 Gallery% 91 Achievement% 87 Wizard Run 0 Options --------- Layout 1 ASCII 0 Keyboard 0 Movement Mouse Keybinds 0 Fullscreen 2 Font 32/SmallcapsGlow Map View 50x35 Zoom Use 0% Tactical HUD 1 Map Filters NONE Filters NONE Steam 1 RUN: 61bae024-db7a-4b1a-98f4-1083688f0d82